[Event "2nd Turkish League 2017"]
[Site "Konya"]
[Date "2017.07.18"]
[Round "2"]
[White "Simsek, Meltem"]
[Black "Abdulla, Khayala"]
[Result "0-1"]
[ECO "A17"]
[WhiteElo "1752"]
[BlackElo "2262"]
[Annotator "NA"]
[PlyCount "60"]
[EventType "team-tourn"]
[EventCountry "TUR"]
[SourceTitle "playchess.com"]
[Source "ChessBase"]
[SourceQuality "1"]
[TimeControl "5400+30"]

1. c4 {[%emt 0:00:30]} e6 {[%emt 0:01:00]} 2. Nc3 {[%emt 0:05:30]} d5 {[%emt 0:00:00]} 3. Nf3 {[%emt 0:01:30]} Nf6 {[%emt 0:00:00]} 4. g3 {[%emt 0:02:30]} d4 {[%emt 0:01:30] A17: English Opening: 1...Nf6 with ...Bb4} (4... Be7 5. Bg2 O-O 6. O-O c6 7. d3 Nbd7 8. Qc2 b6 9. Rd1 Bb7 10. h3 Rc8 11. e4 dxe4 12. dxe4 Qc7 13. a3 Qb8 14. b4 {½-½ (37) Brodowski,P (2436)-Zpevak,P (2392) Czechia 2012}) 5. Nb5 {[%emt 0:04:30]} c5 {[%emt 0:04:30]} 6. d3 {[%emt 0:00:30]} a6 {[%emt 0:02:30]} 7. Na3 {[%emt 0:00:30]} Nc6 {[%emt 0:00:30]} 8. Bg2 {[%emt 0:00:30]} Bd6 {[%emt 0:00:30]} 9. O-O {[%emt 0:00:30]} O-O {[%emt 0:00:00]} 10. Nc2 {[%emt 0:01:30]} e5 {[%emt 0:00:00]} 11. Ng5 {[%emt 0:00:30]} h6 {[%emt 0:04:30]} 12. Ne4 {[%emt 0:00:30]} Nxe4 $146 {[%emt 0:00:30]} 13. Bxe4 {[%emt 0:00:30]} f5 {[%emt 0:00:30]} 14. Bd5+ {[%emt 0:00:30]} Kh8 {[%emt 0:00:30]} 15. f4 $1 {[%emt 0:00:30]} Ne7 {[%emt 0:00:30]} 16. e4 {[%emt 0:10:30]} (16. fxe5 $11 {remains equal.} Bxe5 17. Bg2) 16... fxe4 {[%emt 0:07:30]} 17. Bxe4 {[%emt 0:02:30]} exf4 {[%emt 0:01:30]} 18. Bxf4 {[%emt 0:12:30]} Bxf4 {[%emt 0:00:00]} 19. Rxf4 {[%emt 0:03:30]} Rxf4 {[%emt 0:04:00]} 20. gxf4 {[%emt 0:00:30]} Qc7 {[%emt 0:00:30]} 21. Qh5 {[%emt 0:13:30]} Be6 {[%emt 0:01:30] [#]} (21... Bd7 $11) 22. Rf1 {[%emt 0:12:30]} ({White should play} 22. f5 $1 $16 {[%cal Rf5e6]} Bg8 {[#]} 23. f6 $1 {[%mdl 512]}) 22... Rf8 {[%emt 0:03:30]} 23. f5 {[%emt 0:12:02]} Qe5 {[%emt 0:06:30]} 24. Ne1 {[%emt 0:00:10] [#]} Bxc4 $1 {[%emt 0:08:30]} 25. Nf3 {[%emt 0:00:53]} Qf4 {[%emt 0:00:30]} 26. f6 {[%emt 0:07:03]} (26. Qh4 $17 Qxh4 27. Nxh4 Bxa2 28. Ra1) 26... gxf6 $2 {[%emt 0:04:30]} (26... Rxf6 $19 27. Qe5 (27. Qe8+ $2 Ng8 $19) 27... Qxe5 28. Nxe5 Bxa2 29. Bxb7 Bd5 30. Bxd5 Nxd5) 27. Qxc5 $2 {[%emt 0:00:08] [#]} (27. dxc4 $11 Qxe4 28. Qxh6+ Kg8 {[#]} 29. Ng5 $1 {[%mdl 512]} Qe3+ 30. Kh1) 27... Bxd3 $1 {[%emt 0:02:30]} 28. Qxe7 {[%emt 0:06:26]} (28. Bxd3 $19 Qe3+ 29. Kh1 Qxd3 30. Nd2) 28... Rg8+ {[%emt 0:00:30]} 29. Kh1 {[%emt 0:01:13]} Bxe4 {[%emt 0:00:30]} 30. Qa3 {[%emt 0:00:31]} Qg4 {[%emt 0:00:30]} 0-1

[Event "2nd Turkish League 2017"]
[Site "Konya"]
[Date "2017.07.18"]
[Round "2"]
[White "Ozkurt, Kutay"]
[Black "Kerem, Halil Ozgun"]
[Result "0-1"]
[ECO "B50"]
[WhiteElo "1712"]
[BlackElo "2074"]
[Annotator "NA"]
[PlyCount "88"]
[EventType "team-tourn"]
[EventCountry "TUR"]
[SourceTitle "playchess.com"]
[Source "ChessBase"]
[SourceQuality "1"]
[TimeControl "5400+30"]

1. e4 {[%emt 0:00:30]} c5 {[%emt 0:01:00]} 2. Nf3 {[%emt 0:00:30]} d6 {[%emt 0:00:30]} 3. c3 {[%emt 0:00:30]} Nf6 {[%emt 0:00:30]} 4. Bc4 {[%emt 0:00:30]} Nc6 {[%emt 0:00:30]} 5. Qe2 {[%emt 0:00:30]} Bg4 {[%emt 0:00:00]} 6. d3 {[%emt 0:01:30]} e6 {[%emt 0:00:00] LiveBook: 19 Games B50: Sicilian: 2...d6, Miscellaneous} 7. Nbd2 {[%emt 0:01:30]} (7. Bb3 Be7 8. Bf4 d5 9. h3 Bh5 10. Nbd2 O-O 11. g4 Bg6 12. Bc2 Rc8 13. Kf1 Qb6 14. Rb1 {0-1 (33) Eisenbeiser,A (2396)-Predojevic,B (2640) Austria 2017}) 7... Be7 {[%emt 0:05:30]} 8. O-O {[%emt 0:00:30]} O-O {[%emt 0:00:30]} 9. Bb3 {[%emt 0:00:30]} d5 {[%emt 0:01:30]} 10. Rd1 $146 {[%emt 0:01:30]} ({Predecessor:} 10. Re1 Bh5 11. h3 Bg6 12. e5 Nd7 13. Nf1 b5 14. Bc2 d4 15. a4 a6 16. cxd4 cxd4 17. axb5 axb5 {½-½ (17) Zambor,N (2500)-Vrbica,L (2245) Slovakia 2002}) 10... Qc7 {[%emt 0:07:30]} 11. Nf1 {[%emt 0:05:30]} Ne5 {[%emt 0:06:30]} 12. exd5 {[%emt 0:00:00]} Bxf3 $1 $15 {[%emt 0:01:30] stays ahead.} (12... Nxd5 $2 {[%emt 0:01:30][%mdl 8192]}) 13. gxf3 {[%emt 0:00:00]} Nxd5 {[%emt 0:00:30]} 14. Bxd5 {[%emt 0:06:30]} exd5 {[%emt 0:00:00]} 15. Ng3 {[%emt 0:01:30]} Ng6 {[%emt 0:02:00]} 16. Kh1 {[%emt 0:12:30]} Rfe8 {[%emt 0:05:30]} 17. d4 {[%emt 0:03:30]} c4 {[%emt 0:10:30]} 18. Qc2 {[%emt 0:05:30]} Qd7 {[%emt 0:07:30]} ({Better is} 18... Nh4 19. f4 Bd6) 19. Qf5 {[%emt 0:01:30]} Qxf5 {[%emt 0:02:30]} 20. Nxf5 {[%emt 0:00:30]} Bh4 {[%emt 0:00:00]} 21. Be3 {[%emt 0:00:00]} Re6 {[%emt 0:01:00]} 22. Rg1 {[%emt 0:00:00]} Bd8 {[%emt 0:03:30]} 23. Bg5 {[%emt 0:07:30]} Bxg5 {[%emt 0:02:30]} 24. Rxg5 {[%emt 0:00:30]} h6 {[%emt 0:02:30]} 25. Rg3 {[%emt 0:00:30]} Re2 {[%emt 0:00:30]} 26. Rag1 {[%emt 0:01:30]} Rxb2 {[%emt 0:03:30]} 27. h4 {[%emt 0:00:30]} h5 {[%emt 0:00:30]} 28. Rg5 {[%emt 0:00:00]} Rxf2 {[%emt 0:01:30]} 29. Rxh5 {[%emt 0:00:00]} Re8 {[%emt 0:00:30]} (29... Rxa2 $2 30. Rhg5 $17) ({Don't take} 29... Rxf3 30. Rg3 $19) 30. Rhg5 {[%emt 0:03:30]} Ree2 {[%emt 0:00:00]} (30... Rxf3 $142 31. Rb1 b6) 31. R5g2 $19 {[%emt 0:00:30]} (31. R1g2 $142) 31... Rxa2 {[%emt 0:04:00]} 32. Rxf2 {[%emt 0:00:30]} Rxf2 {[%emt 0:00:30]} 33. h5 {[%emt 0:00:00]} Rxf3 {[%emt 0:00:00]} 34. Nd6 {[%emt 0:03:00]} Rh3+ {[%emt 0:01:00]} 35. Kg2 {[%emt 0:00:30]} Rxh5 {[%emt 0:00:30]} 36. Nxb7 {[%emt 0:00:00]} Rg5+ {[%emt 0:00:30]} 37. Kf2 {[%emt 0:00:00]} Rxg1 {[%emt 0:00:00]} 38. Kxg1 {[%emt 0:00:30]} Kf8 {[%emt 0:01:00]} 39. Na5 {[%emt 0:00:00]} Ne7 {[%emt 0:01:30]} 40. Kf2 {[%emt 0:00:00]} Ke8 {[%emt 0:00:30]} 41. Nb7 {[%emt 0:00:30]} Kd7 {[%emt 0:00:00]} 42. Nc5+ {[%emt 0:00:30]} Kc6 {[%emt 0:00:00]} 43. Ke3 {[%emt 0:00:00]} a5 {[%emt 0:00:30]} 44. Kf4 {[%emt 0:00:00]} f6 {[%emt 0:00:30]} 0-1

[Event "2nd Turkish League 2017"]
[Site "Konya"]
[Date "2017.07.20"]
[Round "2"]
[White "Kabuk, Erdem"]
[Black "Yasin, Hur"]
[Result "1-0"]
[ECO "B80"]
[WhiteElo "1710"]
[BlackElo "2022"]
[Annotator "NA"]
[PlyCount "71"]
[EventType "team-tourn"]
[EventCountry "TUR"]
[SourceTitle "playchess.com"]
[Source "ChessBase"]
[SourceQuality "1"]
[TimeControl "5400+30"]

1. e4 {[%emt 0:00:30]} c5 {[%emt 0:01:00]} 2. Nf3 {[%emt 0:00:30]} a6 {[%emt 0:00:30]} 3. Nc3 {[%emt 0:00:00]} e6 {[%emt 0:00:30]} 4. d4 {[%emt 0:00:00]} cxd4 {[%emt 0:00:30]} 5. Nxd4 {[%emt 0:00:00]} Qc7 {[%emt 0:02:30]} 6. g3 {[%emt 0:01:00]} Nc6 {[%emt 0:00:30]} 7. Bg2 {[%emt 0:00:30]} Nf6 {[%emt 0:01:30]} 8. O-O {[%emt 0:00:30]} Be7 {[%emt 0:00:30]} 9. Re1 {[%emt 0:03:30]} d6 {[%emt 0:00:30]} 10. Nxc6 {[%emt 0:01:30]} bxc6 {[%emt 0:00:30]} 11. e5 {[%emt 0:05:30]} dxe5 {[%emt 0:00:30]} 12. Rxe5 {[%emt 0:01:30]} Nd5 {[%emt 0:04:30]} ({Black should play} 12... O-O $14 13. Bf4 Qb7) 13. Nxd5 {[%emt 0:06:30] LiveBook: 3 Games B80: Sicilian Scheveningen: 6 g3 and 6 Be3, including English Attack} cxd5 {[%emt 0:01:30]} 14. Qe2 {[%emt 0:01:30]} ({Better is} 14. Bf4 $16 Qb6 {[#]} (14... Bd6 15. Qxd5 Rb8 16. Qd4 O-O 17. Rd1 Rb6 18. Rg5 e5 19. Bxe5 Bxe5 20. Rxe5 Qxc2 21. Rc5 {1-0 (21) Sidorenko,I (2415)-Nedobora,M (2384) Israel 2012}) 15. c4 $1 {[%mdl 512]}) 14... Ra7 $146 {[%emt 0:03:30]} ({Predecessor:} 14... O-O 15. Bxd5 Rb8 16. Re4 Qc5 17. Bb3 Bb7 18. Be3 Qc6 19. f3 Rbd8 20. Kg2 Bf6 {1-0 (40) Cordts,I (2292)-Becker,T (2154) Bad Wiessee 2010}) 15. c4 {[%emt 0:12:30]} d4 {[%emt 0:10:30]} 16. Bf4 {[%emt 0:05:30]} Qb6 {[%emt 0:00:30] [#]} (16... Qd7 $14) 17. c5 $1 {[%emt 0:00:30]} Qd8 {[%emt 0:06:30]} 18. c6 {[%emt 0:06:30]} g5 {[%emt 0:13:30]} (18... O-O {is a better defense.} 19. Qc4 Qb6) 19. Bd2 {[%emt 0:01:30]} f6 {[%emt 0:03:30]} 20. Rxe6 {[%emt 0:08:30]} Bxe6 {[%emt 0:00:30]} 21. Qxe6 {[%emt 0:00:30]} Qd6 {[%emt 0:07:30]} 22. Qb3 {[%emt 0:10:30]} Kf8 {[%emt 0:01:30]} 23. Ba5 {[%emt 0:04:30]} Kg7 {[%emt 0:02:30]} 24. Bb6 $2 {[%emt 0:01:30]} ({White should try} 24. Qb6 $18 Raa8 25. c7) 24... Raa8 {[%emt 0:01:30]} 25. c7 {[%emt 0:01:30]} Rab8 {[%emt 0:12:30]} 26. cxb8=Q {[%emt 0:01:30]} Rxb8 {[%emt 0:00:30] [#]} 27. Re1 $18 {[%emt 0:02:30]} ({Not} 27. Bc5 Qc7 $14) 27... d3 {[%emt 0:11:27]} 28. Re6 {[%emt 0:05:30]} Qd7 {[%emt 0:06:45]} 29. Bc6 {[%emt 0:01:07]} Rxb6 {[%emt 0:01:55]} 30. Bxd7 {[%emt 0:01:01]} Rxb3 {[%emt 0:00:04]} 31. Rxe7+ {[%emt 0:01:05]} Kf8 {[%emt 0:01:00]} 32. Re8+ {[%emt 0:00:30]} Kf7 {[%emt 0:00:00]} 33. Be6+ {[%emt 0:00:00]} Kxe8 {[%emt 0:01:05]} 34. Bxb3 {[%emt 0:00:00]} Kd7 {[%emt 0:00:44]} 35. f3 {[%emt 0:00:34]} f5 {[%emt 0:00:29]} 36. f4 {[%emt 0:00:00]} 1-0

[Event "2nd Turkish League 2017"]
[Site "Konya"]
[Date "2017.07.18"]
[Round "2"]
[White "Ilkbahar, Nimet Seray"]
[Black "Vanlioglu, Ece"]
[Result "1-0"]
[ECO "B01"]
[WhiteElo "1618"]
[BlackElo "1134"]
[Annotator "NA"]
[PlyCount "51"]
[EventType "team-tourn"]
[EventCountry "TUR"]
[SourceTitle "playchess.com"]
[Source "ChessBase"]
[SourceQuality "1"]
[TimeControl "5400+30"]

1. e4 {[%emt 0:00:30]} d5 {[%emt 0:01:00]} 2. exd5 {[%emt 0:00:30]} Qxd5 {[%emt 0:00:30]} 3. Nc3 {[%emt 0:00:30]} Qa5 {[%emt 0:00:00]} 4. Bc4 {[%emt 0:07:30]} Nf6 {[%emt 0:03:00]} 5. d4 {[%emt 0:06:30]} e5 {[%emt 0:05:30]} 6. Qe2 {[%emt 0:12:30]} Bd6 {[%emt 0:05:30]} 7. Bb5+ {[%emt 0:08:30]} c6 {[%emt 0:00:30]} 8. dxe5 {[%emt 0:01:30]} O-O {[%emt 0:09:30]} 9. exf6 {[%emt 0:00:30]} Bd7 {[%emt 0:04:30]} 10. Bd3 {[%emt 0:05:30]} Re8 {[%emt 0:02:30]} 11. Be3 {[%emt 0:01:30]} Bf4 {[%emt 0:02:30]} 12. O-O-O {[%emt 0:05:30]} Qc5 {[%emt 0:06:30]} 13. Re1 {[%emt 0:03:30]} Na6 {[%emt 0:04:30]} 14. Kb1 {[%emt 0:01:30]} Bxe3 {[%emt 0:01:30]} 15. fxe3 {[%emt 0:01:30]} Nb4 {[%emt 0:00:30]} 16. fxg7 {[%emt 0:01:30]} a5 {[%emt 0:02:30]} 17. Nf3 {[%emt 0:03:30]} a4 {[%emt 0:00:30]} 18. Ne4 {[%emt 0:01:30]} Qd5 {[%emt 0:01:30]} 19. Nf6+ {[%emt 0:00:30]} Kxg7 {[%emt 0:00:30]} 20. Nxd5 {[%emt 0:00:30]} cxd5 {[%emt 0:00:00]} 21. Qf2 {[%emt 0:00:30]} Nxd3 {[%emt 0:01:00]} 22. cxd3 {[%emt 0:00:30]} Bb5 {[%emt 0:00:00]} 23. Rd1 {[%emt 0:00:00]} a3 {[%emt 0:00:00]} 24. b3 {[%emt 0:02:00]} Rac8 {[%emt 0:00:30]} 25. Nd4 {[%emt 0:00:00]} Bd7 {[%emt 0:00:30]} 26. Rhf1 {[%emt 0:00:00]} 1-0

[Event "2nd Turkish League 2017"]
[Site "Konya"]
[Date "2017.07.18"]
[Round "2"]
[White "Koc, Aylin"]
[Black "Duru, Ipek"]
[Result "1-0"]
[ECO "C47"]
[WhiteElo "1550"]
[BlackElo "1405"]
[Annotator "NA"]
[PlyCount "41"]
[EventType "team-tourn"]
[EventCountry "TUR"]
[SourceTitle "playchess.com"]
[Source "ChessBase"]
[SourceQuality "1"]
[TimeControl "5400+30"]

1. e4 {[%emt 0:00:30]} e5 {[%emt 0:01:00]} 2. Nf3 {[%emt 0:00:30]} Nc6 {[%emt 0:00:00]} 3. Nc3 {[%emt 0:00:30]} Nf6 {[%emt 0:00:00]} 4. d4 {[%emt 0:00:00]} exd4 {[%emt 0:00:30]} 5. Nxd4 {[%emt 0:00:00]} Bb4 {[%emt 0:00:30]} 6. Nxc6 {[%emt 0:00:00]} bxc6 {[%emt 0:01:30]} 7. Bd3 {[%emt 0:00:00]} Bxc3+ {[%emt 0:01:30]} 8. bxc3 {[%emt 0:00:00]} h6 {[%emt 0:00:30]} 9. O-O {[%emt 0:00:00]} Qe7 {[%emt 0:10:30]} 10. Qf3 {[%emt 0:12:30]} O-O {[%emt 0:05:30]} 11. Re1 {[%emt 0:02:30]} Qe5 {[%emt 0:15:30]} 12. Bf4 {[%emt 0:04:30]} Qxc3 {[%emt 0:09:30]} 13. e5 {[%emt 0:02:30]} Nd5 {[%emt 0:01:30]} 14. Qe4 {[%emt 0:00:30]} f5 {[%emt 0:08:30]} 15. exf6 {[%emt 0:00:30]} Qxf6 {[%emt 0:00:30]} 16. Qh7+ {[%emt 0:02:30]} Kf7 {[%emt 0:00:30]} 17. Be5 {[%emt 0:00:30]} Qg5 {[%emt 0:08:30]} 18. h4 {[%emt 0:05:30]} Qg4 {[%emt 0:04:30]} 19. h5 {[%emt 0:03:30]} Nf4 {[%emt 0:02:30]} 20. Bg6+ {[%emt 0:01:30]} Ke6 {[%emt 0:05:30]} 21. Bxf4+ {[%emt 0:00:30]} 1-0

[Event "2nd Turkish League 2017"]
[Site "Konya"]
[Date "2017.07.20"]
[Round "2"]
[White "Dayan, Cansu"]
[Black "Turkkan, Ece"]
[Result "1/2-1/2"]
[ECO "B06"]
[WhiteElo "1525"]
[BlackElo "1532"]
[Annotator "NA"]
[PlyCount "80"]
[EventType "team-tourn"]
[EventCountry "TUR"]
[SourceTitle "playchess.com"]
[Source "ChessBase"]
[SourceQuality "1"]
[TimeControl "5400+30"]

1. e4 {[%emt 0:00:30]} d6 {[%emt 0:01:00]} 2. d4 {[%emt 0:00:30]} g6 {[%emt 0:00:00]} 3. Nc3 {[%emt 0:03:30]} Bg7 {[%emt 0:00:00]} 4. g3 {[%emt 0:08:30]} Nd7 {[%emt 0:00:30]} 5. f4 {[%emt 0:02:30]} a6 {[%emt 0:09:30]} 6. Bg2 {[%emt 0:01:30]} Rb8 {[%emt 0:03:30]} 7. Be3 {[%emt 0:02:30]} b5 {[%emt 0:00:30]} 8. Qd2 {[%emt 0:00:30]} Bb7 {[%emt 0:00:30]} 9. Nd1 {[%emt 0:00:30]} c5 {[%emt 0:01:30]} 10. c3 {[%emt 0:00:30]} Ngf6 {[%emt 0:02:30]} 11. Nf2 {[%emt 0:00:30]} O-O {[%emt 0:01:30]} 12. Ne2 {[%emt 0:13:30]} Qc7 {[%emt 0:08:30]} 13. g4 {[%emt 0:05:30]} Nb6 {[%emt 0:20:30]} 14. b3 {[%emt 0:04:30]} cxd4 {[%emt 0:13:30]} 15. cxd4 {[%emt 0:04:30]} Rfc8 {[%emt 0:02:30]} 16. Rc1 {[%emt 0:03:30]} Qd8 {[%emt 0:05:30]} 17. O-O {[%emt 0:12:30]} Rxc1 {[%emt 0:04:30]} 18. Rxc1 {[%emt 0:00:00]} Rc8 {[%emt 0:03:30]} 19. f5 {[%emt 0:01:00]} Rxc1+ {[%emt 0:04:52]} 20. Qxc1 {[%emt 0:00:00]} a5 {[%emt 0:04:26]} 21. Bh6 {[%emt 0:04:00]} d5 {[%emt 0:08:23]} 22. e5 {[%emt 0:04:30]} Ne4 {[%emt 0:02:28]} 23. Nxe4 {[%emt 0:13:32]} Bxh6 {[%emt 0:01:28]} 24. Qxh6 {[%emt 0:00:48]} dxe4 {[%emt 0:00:05]} 25. h4 {[%emt 0:01:57]} Qf8 {[%emt 0:01:33]} 26. Qc1 {[%emt 0:00:18]} Qc8 {[%emt 0:00:00]} 27. Qg5 {[%emt 0:01:16]} Qc7 {[%emt 0:00:43]} 28. f6 {[%emt 0:00:31]} Nd5 {[%emt 0:00:19]} 29. Bxe4 {[%emt 0:02:42]} exf6 {[%emt 0:00:41]} 30. exf6 {[%emt 0:00:12]} Qd6 {[%emt 0:00:13]} 31. Bxd5 {[%emt 0:01:29]} Bxd5 {[%emt 0:00:36]} 32. Nf4 {[%emt 0:01:04]} Bc6 {[%emt 0:00:15]} 33. h5 {[%emt 0:00:28]} Qxd4+ {[%emt 0:00:15]} 34. Kf1 {[%emt 0:02:35]} Qd1+ {[%emt 0:00:38]} 35. Kf2 {[%emt 0:00:52]} Qf3+ {[%emt 0:00:37]} 36. Ke1 {[%emt 0:00:19]} Qe3+ {[%emt 0:00:40]} 37. Kf1 {[%emt 0:00:30]} Qf3+ {[%emt 0:00:03]} 38. Ke1 {[%emt 0:03:17]} Qe3+ {[%emt 0:00:35]} 39. Kd1 {[%emt 0:00:28]} Bf3+ {[%emt 0:00:15]} 40. Kc2 {[%emt 0:00:30]} Be4+ {[%emt 0:00:00]} 1/2-1/2

[Event "2nd Turkish League 2017"]
[Site "Konya"]
[Date "2017.07.20"]
[Round "2"]
[White "Tutuncu, Inci"]
[Black "Ozsoy, Damla"]
[Result "0-1"]
[ECO "A07"]
[WhiteElo "1436"]
[BlackElo "1490"]
[Annotator "NA"]
[PlyCount "124"]
[EventType "team-tourn"]
[EventCountry "TUR"]
[SourceTitle "playchess.com"]
[Source "ChessBase"]
[SourceQuality "1"]
[TimeControl "5400+30"]

1. Nf3 {[%emt 0:00:30]} Nf6 {[%emt 0:01:00]} 2. g3 {[%emt 0:00:00]} d5 {[%emt 0:01:30]} 3. d3 {[%emt 0:00:00]} g6 {[%emt 0:00:30]} 4. Bg2 {[%emt 0:00:30]} Bg7 {[%emt 0:01:30]} 5. O-O {[%emt 0:00:30]} O-O {[%emt 0:01:30]} 6. Nbd2 {[%emt 0:01:30]} e6 {[%emt 0:11:30]} 7. c4 {[%emt 0:06:30]} c5 {[%emt 0:05:30]} 8. Rb1 {[%emt 0:03:30]} Nc6 {[%emt 0:01:30]} 9. b3 {[%emt 0:04:30]} b6 {[%emt 0:07:30]} 10. cxd5 {[%emt 0:07:30]} exd5 {[%emt 0:07:30]} 11. Bb2 {[%emt 0:03:30]} Re8 {[%emt 0:06:30]} 12. d4 {[%emt 0:06:30]} Qe7 {[%emt 0:08:30]} 13. e3 {[%emt 0:02:30]} Bf5 {[%emt 0:07:30]} 14. Ra1 {[%emt 0:11:30]} Bd3 {[%emt 0:15:30]} 15. Re1 {[%emt 0:00:30]} Ne4 {[%emt 0:01:05]} 16. a3 {[%emt 0:11:30]} Rac8 {[%emt 0:04:10]} 17. Ra2 {[%emt 0:06:30]} c4 {[%emt 0:07:32]} 18. bxc4 {[%emt 0:04:30]} dxc4 {[%emt 0:00:08]} 19. Nxe4 {[%emt 0:10:02]} Bxe4 {[%emt 0:01:03]} 20. Bc3 {[%emt 0:00:27]} Nd8 {[%emt 0:06:09]} 21. Qa1 {[%emt 0:02:50]} Nb7 {[%emt 0:00:57]} 22. Nd2 {[%emt 0:02:17]} Bd3 {[%emt 0:00:25]} 23. d5 {[%emt 0:03:03]} Bxc3 {[%emt 0:01:06]} 24. Qxc3 {[%emt 0:00:07]} Nd6 {[%emt 0:00:00]} 25. a4 {[%emt 0:01:11]} Red8 {[%emt 0:00:49]} 26. Raa1 {[%emt 0:01:13]} Ne4 {[%emt 0:00:52]} 27. Nxe4 {[%emt 0:01:32]} Bxe4 {[%emt 0:00:05]} 28. Rad1 {[%emt 0:00:38]} Bxg2 {[%emt 0:00:30]} 29. Kxg2 {[%emt 0:00:00]} Rxd5 {[%emt 0:00:07]} 30. Rxd5 {[%emt 0:01:01]} Qe4+ {[%emt 0:00:30]} 31. f3 {[%emt 0:00:30]} Qxd5 {[%emt 0:00:30]} 32. e4 {[%emt 0:00:00]} Qc6 {[%emt 0:01:18]} 33. Ra1 {[%emt 0:00:36]} a6 {[%emt 0:00:09]} 34. Kf2 {[%emt 0:00:39]} b5 {[%emt 0:00:39]} 35. axb5 {[%emt 0:00:30]} axb5 {[%emt 0:00:00]} 36. Rb1 {[%emt 0:00:00]} Rb8 {[%emt 0:01:23]} 37. Rb4 {[%emt 0:00:13]} Rd8 {[%emt 0:00:37]} 38. Qe5 {[%emt 0:02:57]} Qb6+ {[%emt 0:01:07]} 39. Kf1 {[%emt 0:00:46]} Rb8 {[%emt 0:00:39]} 40. Ke2 {[%emt 0:01:26]} Qb7 {[%emt 0:00:32]} 41. Kd2 {[%emt 0:01:01]} Rd8+ {[%emt 0:00:32]} 42. Kc2 {[%emt 0:00:24]} Rb8 {[%emt 0:00:33]} 43. Kc3 {[%emt 0:01:17]} Qb6 {[%emt 0:00:15]} 44. Qd4 {[%emt 0:01:10]} Qxd4+ {[%emt 0:00:30]} 45. Kxd4 {[%emt 0:00:30]} Kg7 {[%emt 0:00:30]} 46. Kc3 {[%emt 0:00:00]} Kf6 {[%emt 0:00:00]} 47. f4 {[%emt 0:00:00]} Ke6 {[%emt 0:00:25]} 48. Rb2 {[%emt 0:00:17]} Rb7 {[%emt 0:00:27]} 49. g4 {[%emt 0:00:30]} f5 {[%emt 0:00:13]} 50. gxf5+ {[%emt 0:00:34]} gxf5 {[%emt 0:00:04]} 51. e5 {[%emt 0:00:05]} Kd5 {[%emt 0:00:30]} 52. Rd2+ {[%emt 0:00:14]} Ke4 {[%emt 0:00:24]} 53. Rd4+ {[%emt 0:01:32]} Kf3 {[%emt 0:00:34]} 54. Kb4 {[%emt 0:01:34]} Ke3 {[%emt 0:00:30]} 55. Kc5 {[%emt 0:01:00]} c3 {[%emt 0:00:18]} 56. Kc6 {[%emt 0:01:48]} Rb8 {[%emt 0:01:20]} 57. Kc7 {[%emt 0:01:17]} Rg8 {[%emt 0:00:13]} 58. Rd5 {[%emt 0:00:24]} b4 {[%emt 0:01:46]} 59. e6 {[%emt 0:00:29]} c2 {[%emt 0:00:44]} 60. Rc5 {[%emt 0:00:10]} Kd2 {[%emt 0:00:16]} 61. Kd6 {[%emt 0:01:13]} c1=Q {[%emt 0:00:30]} 62. Rxc1 {[%emt 0:00:30]} Kxc1 {[%emt 0:00:00]} 0-1

[Event "2nd Turkish League 2017"]
[Site "Konya"]
[Date "2017.07.18"]
[Round "3"]
[White "Rzayev, Bahruz"]
[Black "Hasanzade, Toghrul"]
[Result "1/2-1/2"]
[ECO "B22"]
[WhiteElo "2386"]
[BlackElo "2352"]
[Annotator "NA"]
[PlyCount "64"]
[EventType "team-tourn"]
[EventCountry "TUR"]
[SourceTitle "playchess.com"]
[Source "ChessBase"]
[SourceQuality "1"]
[TimeControl "5400+30"]

1. e4 {[%emt 0:00:30]} Nf6 {[%emt 0:01:00]} 2. e5 {[%emt 0:00:30]} Nd5 {[%emt 0:00:30]} 3. c4 {[%emt 0:00:30]} Nb6 {[%emt 0:00:30]} 4. c5 {[%emt 0:00:30]} Nd5 {[%emt 0:00:30]} 5. Nc3 {[%emt 0:00:00]} e6 {[%emt 0:02:30]} 6. d4 {[%emt 0:00:00]} d6 {[%emt 0:00:30]} 7. cxd6 {[%emt 0:00:00]} cxd6 {[%emt 0:00:30]} 8. Nf3 {[%emt 0:00:00]} Nc6 {[%emt 0:00:00]} 9. exd6 {[%emt 0:02:30]} Bxd6 {[%emt 0:02:00]} 10. Bd3 {[%emt 0:00:00]} h6 {[%emt 0:03:30]} 11. O-O {[%emt 0:03:00]} Nf6 {[%emt 0:02:30]} 12. a3 {[%emt 0:01:30]} O-O {[%emt 0:00:30]} 13. Bc2 {[%emt 0:00:30]} e5 {[%emt 0:02:30]} 14. dxe5 {[%emt 0:03:30]} Nxe5 {[%emt 0:00:00]} 15. Bf4 {[%emt 0:00:30]} Nxf3+ {[%emt 0:01:00]} 16. Qxf3 {[%emt 0:01:30]} Bxf4 {[%emt 0:02:30]} 17. Qxf4 {[%emt 0:00:00]} Qb6 {[%emt 0:00:30]} 18. Rab1 {[%emt 0:03:00]} Be6 {[%emt 0:01:30]} 19. Rfd1 {[%emt 0:02:30]} Rfd8 {[%emt 0:00:30]} 20. Rxd8+ {[%emt 0:01:30]} Rxd8 {[%emt 0:00:30]} 21. Rd1 {[%emt 0:00:30]} Rxd1+ {[%emt 0:00:30]} 22. Nxd1 {[%emt 0:00:00]} Qd8 {[%emt 0:00:30]} 23. h3 {[%emt 0:00:00]} Nd5 {[%emt 0:00:30]} 24. Qe4 {[%emt 0:01:30]} g6 {[%emt 0:00:30]} 25. Qd4 {[%emt 0:00:30]} Qc7 {[%emt 0:00:30]} 26. Bb3 {[%emt 0:01:30]} Nf4 {[%emt 0:00:30]} 27. Qe3 {[%emt 0:01:30]} Bxb3 {[%emt 0:00:30]} 28. Qxb3 {[%emt 0:00:00]} Qc6 {[%emt 0:00:30]} 29. Ne3 {[%emt 0:00:00]} Qc1+ {[%emt 0:00:30]} 30. Nd1 {[%emt 0:01:30]} Qc6 {[%emt 0:00:30]} 31. Ne3 {[%emt 0:00:30]} Qc1+ {[%emt 0:00:30]} 32. Nd1 {[%emt 0:00:30]} Qc6 {[%emt 0:00:00]} 1/2-1/2